Cogmind - Beta 14 @@@ ROGUE MODE // 2025.04.24 @ 21:04:01 Player: JB Result: Destroyed by Y-54 Guardian with Gatling Laser Performance ------------- Evolutions (0) 0 Regions Visited (4) 800 Robots Destroyed (24) 120 Value Destroyed (471) 471 Prototype IDs (0) 0 Alien Tech Used (0) 0 Bonus (0) 0 TOTAL SCORE: 1391 Bonus ------- None Cogmind --------- Core Integrity 0/250 Matter 247/300 Energy 38/125 System Corruption 2% Temperature Cool (61) Movement Core (350) Ox6 Location -7/Recycling Parts ------- > --- POWER (1) -------- Light Ion Engine > --- PROPULSION (2) --- (None) > --- UTILITY (2) ------ Small Storage Unit Structural Scanner > --- WEAPON (2) ------- Improved EM Pulse Cannon Heavy Assault Rifle > --- INVENTORY (8) ---- Machine Analyzer Improved Signal Interpreter EM Pulse Gun Medium Laser Grenade Launcher Grenade Launcher Peak State ------------ > --- POWER ------------ Ion Engine > --- PROPULSION ------- Aluminum Leg > --- UTILITY ---------- Small Storage Unit Structural Scanner > --- WEAPON ----------- Improved EM Pulse Cannon Grenade Launcher > --- INVENTORY -------- Light Ion Engine Machine Analyzer Improved Signal Interpreter EM Pulse Gun Medium Laser Heavy Assault Rifle Grenade Launcher [Rating: 10] Favorites ----------- Power Ion Engine Engine Ion Engine Propulsion Aluminum Leg Leg Aluminum Leg Utility Small Storage Unit Device Structural Scanner Storage Small Storage Unit Protection Light Armor Plating Weapon Heavy Assault Rifle Energy Gun EM Pulse Gun Energy Cannon Improved EM Pulse Cannon Ballistic Gun Heavy Assault Rifle Launcher Grenade Launcher Build | -11 -10 -10 -10 -7 ------- Run | Yrd Mat Min Sub Rec Slots Evolved . | . . . . . Power . | . . . . . Propulsion . | . . . . . Utility . | . . . . . Weapon . | . . . . . Parts Attached 20 | 6 3 6 1 4 Power 3 | 1 . 1 . 1 Engine 3 | 1 . 1 . 1 Core . | . . . . . Reactor . | . . . . . Propulsion 2 | 2 . . . . Treads . | . . . . . Leg 2 | 2 . . . . Wheel . | . . . . . Hover . | . . . . . Flight . | . . . . . Utility 4 | 1 2 . 1 . Device 2 | . 1 . 1 . Storage 1 | 1 . . . . Processor . | . . . . . Hackware . | . . . . . Protection 1 | . 1 . . . Artifact . | . . . . . Weapon 11 | 2 1 5 . 3 Energy Gun 4 | 2 . 2 . . Energy Cannon 1 | . . . . 1 Ballistic Gun 5 | . 1 2 . 2 Ballistic Cannon . | . . . . . Launcher 1 | . . 1 . . Special Weapon . | . . . . . Impact Weapon . | . . . . . Slashing Weapon . | . . . . . Piercing Weapon . | . . . . . Special Melee Weapon . | . . . . . Unidentified Prototypes . | . . . . . Parts Lost 5 | . . 2 1 2 Power 2 | . . 1 . 1 Propulsion 2 | . . . 1 1 Utility . | . . . . . Weapon 1 | . . 1 . . Highest Loss Streak 2 | . . 2 1 2 To Critical Strikes . | . . . . . Average Slot Usage (%) 94 | . 99 97 86 83 Engine 13 | . 14 12 14 13 Leg 23 | . 28 28 16 14 Device 13 | . 11 14 12 14 Storage 14 | . 14 14 14 14 Energy Gun 5 | . 14 4 . . Ballistic Gun 17 | . 13 23 14 9 Launcher 4 | . . . 14 14 Peak Build Rating 10 | 6 7 8 8 10 Average Rating 7 | 3 6 7 7 8 On Entrance 5 | . 6 7 8 7 Naked Turns . | . . . . . Heaviest Build 21 | 12 15 17 17 21 Greatest Support 20 | 20 20 20 20 10 Greatest Overweight (x) 2 | . . . 1 2 Average Overweight (x) . | . . . . 1 Largest Inventory Capacity 8 | 8 8 8 8 8 Average Capacity 7 | 6 8 8 8 8 Most Carried 8 | 2 6 8 8 8 Average Carried 6 | . 4 7 7 7 Final Capacity 8 | 8 8 8 8 8 Final Carried 8 | 1 6 8 7 6 Class Distribution -------------------- 100% | Mutant Dominant Class ---------------- Mutant | -10/Materials Mutant | -10/Mines Mutant | -10/Subcaves Mutant | -7/Recycling Resources | -11 -10 -10 -10 -7 ----------- Run | Yrd Mat Min Sub Rec Matter Collected 668 | 209 135 108 37 179 Remotely . | . . . . . Salvage Created 468 | . 145 246 77 . Parts 37 | . 12 19 6 . Haulers Intercepted . | . . . . . Recyclers Shooed 2 | . 2 . . . Parts Field Recycled . | . . . . . Retrieved Matter . | . . . . . Parts Self-Destructed 5 | . . . 5 . Prevented . | . . . . . Kills | -11 -10 -10 -10 -7 ------- Run | Yrd Mat Min Sub Rec Combat Hostiles Destroyed 22 | . 5 11 6 . Guns 18 | . 5 11 2 . AOE 4 | . . . 4 . Classes Destroyed 5 | . 2 1 2 . Turret 2 | . . . 2 . Swarmer 16 | . 3 9 4 . Grunt 2 | . 2 . . . Sentry 2 | . . 2 . . Subdweller 2 | . . . 2 . Best Kill Streak 3 | . 2 3 3 . Combat Bots Only 3 | . 2 3 3 . Max Kills in Single Turn 2 | . 2 1 2 . Gunslinging 1 | . 1 . . . Exploded 1 | . . . 1 . Melee . | . . . . . Uniques/NPCs Destroyed . | . . . . . Combat | -11 -10 -10 -10 -7 -------- Run | Yrd Mat Min Sub Rec Hostile Shots Fired 177 | . 16 75 56 30 Missed 73 | . 10 23 25 15 Damage Taken 1035 | . 68 575 274 118 Core 258 | . 12 186 40 20 Absorbed by Shields . | . . . . . Core Remaining (%) 100 | 100 . . . . Volleys Fired 52 | . 13 21 16 2 Largest 2 | . 2 2 2 2 Hottest 99 | . 60 90 53 99 Shots Fired 96 | . 27 38 27 4 Gun 76 | . 27 37 11 1 Cannon 2 | . . . . 2 Launcher 18 | . . 1 16 1 Special . | . . . . . Kinetic 47 | . 13 22 11 1 Thermal 11 | . . 11 . . Explosive 18 | . . 1 16 1 Electromagnetic 20 | . 14 4 . 2 Robot Hit Streak 9 | . 7 9 7 2 Robot Miss Streak 4 | . 2 4 1 1 Penetration Max . | . . . . . Secondary Targets 2 | . 1 1 . . Max Gunslinging Chain 1 | . 1 1 . . Shots Hit Robots 56 | . 19 22 13 2 Core Hits 44 | . 9 15 17 3 Critical Kills . | . . . . . Critical Parts Destroyed 1 | . . 1 . . Critical Strikes 5 | . 2 2 1 . Burn 1 | . . 1 . . Destroy 2 | . . 1 1 . Corrupt 2 | . 2 . . . Melee Attacks . | . . . . . Impact . | . . . . . Slashing . | . . . . . Piercing . | . . . . . Sneak Attacks . | . . . . . Combat Hostiles . | . . . . . Follow-up Attacks . | . . . . . Damage Inflicted 1326 | . 256 280 739 51 Guns 614 | . 256 280 78 . Cannons 24 | . . . . 24 Explosions 688 | . . . 661 27 Melee . | . . . . . Ramming . | . . . . . Kinetic 331 | . 108 145 78 . Thermal 101 | . . 101 . . Explosive 688 | . . . 661 27 Electromagnetic 206 | . 148 34 . 24 Impact . | . . . . . Slashing . | . . . . . Piercing . | . . . . . Highest Corruption 2 | . 2 2 2 2 Average Corruption 2 | . 2 2 2 2 Corruption Purged . | . . . . . Corruption Blocked . | . . . . . Effects 18 | . 5 9 2 2 Message Errors 3 | . . 3 . . Matter Fused 5 | . 2 2 . 1 Heat Flow Errors 2 | . . 1 . 1 Energy Discharges 2 | . 1 1 . . Data Loss (minor) 3 | . 1 1 1 . Misfires 3 | . 1 1 1 . Overload Shots . | . . . . . Overflow Damage 27 | . . . 27 . Projectiles . | . . . . . Explosions 27 | . . . 27 . Melee . | . . . . . Knockbacks . | . . . . . Impact . | . . . . . Kinetic . | . . . . . Secondary . | . . . . . Self-Inflicted Damage 7 | . . . . 7 Shots 1 | . . . . 1 Rammed . | . . . . . Targets Rammed . | . . . . . Kicked . | . . . . . Crushed . | . . . . . Highest Temperature 204 | . 15 204 5 117 Average Temperature 40 | . 13 44 5 44 Received Heat Transfer 333 | . 27 108 156 42 Siege Activations . | . . . . . Robots Corrupted . | . . . . . Combat Hostiles . | . . . . . Parts Fried . | . . . . . Impact Corruptions . | . . . . . Robots Melted . | . . . . . Combat Hostiles . | . . . . . Parts Melted 2 | . . 2 . . Heat Transferred 370 | . . 370 . . Parts Sabotaged . | . . . . . Parts Stolen . | . . . . . Parts Stripped . | . . . . . Power Chain Reactions . | . . . . . Alert | -11 -10 -10 -10 -7 ------- Run | Yrd Mat Min Sub Rec Peak Influence 328 | . 166 328 . 144 Initial 141 | . . 64 . 141 Average 132 | . 47 189 . 140 Maximum Alert Level 1 | . . 1 . . Low Security (%) 79 | 100 100 55 . 100 Level 1 20 | . . 44 . . Level 2 . | . . . . . Level 3 . | . . . . . Level 4 . | . . . . . Level 5 . | . . . . . High Security . | . . . . . Max Security . | . . . . . Squads Dispatched . | . . . . . Investigation . | . . . . . Extermination . | . . . . . Reinforcement . | . . . . . Assault . | . . . . . Garrison . | . . . . . Intercept . | . . . . . Searches Triggered . | . . . . . Construction Impeded . | . . . . . Haulers Reinforced . | . . . . . Active Scanning Responses . | . . . . . Cargo Convoy Interrupts . | . . . . . Stealth | -11 -10 -10 -10 -7 --------- Run | Yrd Mat Min Sub Rec Distress Signals 1 | . 1 . . . Communications Jammed . | . . . . . Distress Signals . | . . . . . Times Spotted 35 | . 9 12 11 3 Peak Tracking Total 6 | . 3 5 6 3 Tactical Retreats 4 | . 1 1 2 . Traps | -11 -10 -10 -10 -7 ------- Run | Yrd Mat Min Sub Rec Traps Triggered 1 | . 1 . . . Indirectly . | . . . . . Trap Hack Attempts . | . . . . . Triggered . | . . . . . Disarmed 3 | . 3 . . . Reprogrammed . | . . . . . Reused . | . . . . . Traps Extracted . | . . . . . Installed . | . . . . . Triggered . | . . . . . Machines | -11 -10 -10 -10 -7 ---------- Run | Yrd Mat Min Sub Rec Machines Disabled 3 | . . . 3 . Max in Single Turn 1 | . . . 1 . Machines Repaired . | . . . . . Machines Dismantled . | . . . . . Machines Sabotaged . | . . . . . Overloaded Fab Kills . | . . . . . Hacking | -11 -10 -10 -10 -7 --------- Run | Yrd Mat Min Sub Rec Machines Accessed 2 | . 1 1 . . Terminals 2 | . 1 1 . . Fabricators . | . . . . . Repair Stations . | . . . . . Recycling Units . | . . . . . Scanalyzers . | . . . . . Garrison Access . | . . . . . Total Hacks 3 | . 1 2 . . Successful 2 | . 1 1 . . Failed 1 | . . 1 . . Catastrophic . | . . . . . Database Lockouts . | . . . . . Manual 1 | . 1 . . . Terminals 3 | . 1 2 . . Fabricators . | . . . . . Repair Stations . | . . . . . Recycling Units . | . . . . . Scanalyzers . | . . . . . Garrison Access . | . . . . . Terminal Hacks 2 | . 1 1 . . Disarm Traps 1 | . 1 . . . Dispatch Records 1 | . . 1 . . Fabricator Hacks . | . . . . . Repair Station Hacks . | . . . . . Recycling Unit Hacks . | . . . . . Scanalyzer . | . . . . . Garrison Access Hacks . | . . . . . Unauthorized Hacks . | . . . . . Terminals . | . . . . . Fabricators . | . . . . . Repair Stations . | . . . . . Recycling Units . | . . . . . Scanalyzers . | . . . . . Garrison Access . | . . . . . Data Cores Recovered . | . . . . . Used . | . . . . . Hacking Detections 1 | . . 1 . . Full Trace Events . | . . . . . Feedback Events . | . . . . . Feedback Blocked . | . . . . . Robot Schematics Acquired . | . . . . . Robots Built . | . . . . . Authchips . | . . . . . Time . | . . . . . Total Robot Build Rating . | . . . . . Part Schematics Acquired . | . . . . . Parts Built . | . . . . . Authchips . | . . . . . Time . | . . . . . Total Part Build Rating . | . . . . . Parts Repaired . | . . . . . Time . | . . . . . Parts Recycled . | . . . . . Recycled Matter . | . . . . . Retrieved Matter . | . . . . . Retrieved Components . | . . . . . Parts Scanalyzed . | . . . . . Part Schematics Acquired . | . . . . . Parts Damaged . | . . . . . Bothacking | -11 -10 -10 -10 -7 ------------ Run | Yrd Mat Min Sub Rec Used RIF Installer . | . . . . . Robots Hacked . | . . . . . Non-combat . | . . . . . Combat . | . . . . . Robot Hacks Applied . | . . . . . Relay Couplers Released . | . . . . . Fabnet Peak Effective % . | . . . . . Robots Rewired . | . . . . . Allies Hacked . | . . . . . Hacks Repelled . | . . . . . Allies | -11 -10 -10 -10 -7 -------- Run | Yrd Mat Min Sub Rec Total Allies . | . . . . . Largest Group . | . . . . . Highest-Rated Group . | . . . . . Highest-Rated Ally . | . . . . . Total Orders . | . . . . . Ally Attacks . | . . . . . Total Damage . | . . . . . Kills . | . . . . . Allies Corrupted . | . . . . . Allies Melted . | . . . . . Intel | -11 -10 -10 -10 -7 ------- Run | Yrd Mat Min Sub Rec Robot Analysis Total . | . . . . . Derelict Logs Recovered 2 | . . 2 . . Drone Launches . | . . . . . Drone Recoveries . | . . . . . Exploration | -11 -10 -10 -10 -7 ------------- Run | Yrd Mat Min Sub Rec Turns Passed 1315 | 63 308 565 108 271 Spaces Moved 807 | 47 206 392 37 125 Core 4 | 4 . . . . Treads . | . . . . . Legs 803 | 43 206 392 37 125 Wheels . | . . . . . Hover . | . . . . . Flight . | . . . . . Fastest Speed 50 | 50 120 120 120 190 Average Speed 134 | 114 120 120 169 204 Slowest Speed 260 | 120 120 120 190 260 Overloaded Moves . | . . . . . Propulsion Burnouts . | . . . . . Robots Hopped . | . . . . . Cave-ins Triggered . | . . . . . Exploration Rate (%) 27 | 3 51 58 4 22 Regions Visited 4 Branch Regions 3 Pre-discovered Areas 2 | . . 2 . . Known Exits Taken . | . . . . . Unknown Exits Taken 4 | 1 1 1 1 . Scrap Searched 1 | . . 1 . . Spaces Dug 8 | . . 8 . . Terrain Destroyed 57 | . . 8 47 2 Melee . | . . . . . Projectile . | . . . . . AOE 57 | . . 8 47 2 Terrain Rammed . | . . . . . Walls Destroyed . | . . . . . Machines Disabled . | . . . . . Actions | -11 -10 -10 -10 -7 --------- Run | Yrd Mat Min Sub Rec Total 940 | 54 240 449 59 138 Wait 41 | . 14 27 . . Move 803 | 46 205 391 36 125 Hop . | . . . . . Pick Up 11 | 2 3 2 2 2 Fast Attach 13 | 5 3 2 1 2 Attach 4 | 1 . 2 . 1 Detach 5 | . 2 2 . 1 Swap 3 | . . 2 . 1 Drop 8 | . . . 4 4 Fire 52 | . 13 21 16 2 Melee . | . . . . . Ram . | . . . . . Kick . | . . . . . Crush . | . . . . . Escape Stasis . | . . . . . Rewire . | . . . . . Trap . | . . . . . Miscellaneous . | . . . . . Route ------- -11/Scrapyard -10/Materials (discovered 2 exits: [*Mat] / *Min) -10/Mines (discovered 2 exits: [*Mat] / [*Sub]) -10/Subcaves -7/Recycling History --------- Turn | Location | Event 25 | -11/Scrapyard | Discovered new exit (range 15) 64 | -11/Scrapyard | Entered Materials 243 | -10/Materials | Discovered new exit (range 7) 301 | -10/Materials | Build established: Mutant 362 | -10/Materials | Discovered new exit (range 9) 372 | -10/Materials | Entered Mines 433 | -10/Mines | Learned location of Mines (-9) 465 | -10/Mines | Core integrity fell below 50% 618 | -10/Mines | Learned Materials emergency access door positions 618 | -10/Mines | Discovered new exit (range 4) 759 | -10/Mines | Learned location of Storage (-7) 864 | -10/Mines | Discovered new exit (range 10) 937 | -10/Mines | Entered Subcaves 937 | -10/Subcaves | Discovered new exit (range 8) 943 | -10/Subcaves | Ambushed by Subdwellers from Twisted Machinery 959 | -10/Subcaves | Core integrity fell below 20% 1045 | -10/Subcaves | Entered Recycling 1316 | -7/Recycling | Destroyed by Y-54 Guardian with Gatling Laser Last Messages --------------- repair. 01036_ The unstable cave ceiling collapses. LOCATION=UNKNOWN GOAL=ESCAPE 01053_ Connecting with Terminal... 01053_ Current location identified: Recycling 01068_ Acquired 80 matter. 01076_ Acquired 99 matter. 01091_ Acquired Machine Analyzer. 01176_ System corrupted: Matter fused (-5). 01195_ Dropped Lgt. Armor Plating. 01195_ Acquired Imp. Signal Interpreter. 01234_ Dropped Hvy. Assault Rifle. 01235_ Dropped Lgt. Assault Rifle. 01238_ Acquired Hvy. Assault Rifle. 01241_ Acquired Imp. EM Pulse Cannon. 01270_ System corrupted: Heat flow error (+137). 01300_ Y-54 Guardian springs to life. 01309_ Ion Engine destroyed. 01312_ Aluminum Leg destroyed. Map ----- +----------------------------------------------------+ | ???????????????????????????############### | | ???????????????????????????## """ | | ???????????????????????????## "Y" | | ???????????????????????????## """"" | | ???????????????????????????## """"" | | ???????????????????????????## """"" | | ???????????????????????????## | | ????????????????????###################### | | ????????????????????###################### | | ????????????????????## | | ????????????????????## | | ????????????????????## [[ | | ????????????????????## #####]]]#"Y"##### | | ????????????????????## #####] #"""##### | | ????????????????????## ##?###########?## | | ????????????????????## ##?###########??? | | ????????????????????## ##??????????????? | | ?????????############# ##??????????????? | | ?????????############# ##??????????????? | | ????????? ## ##??????????????? | | ?????????? ## ###?????????????? | | ?????????"""" """ ## r ###?????????????? | | ?????????"""" """ # ##?????????????? | | ??????## """" """ ##?????????????? | | ??????## """" Y ##?????????????? | | ??????## @ Y ##?????????????? | | ??????## """" """" # l ##?????????????? | | ??????## ?""" """" ## ###?????????????? | | ???????????"" """" ## ###?????????????? | | ????????????" """" ## ##?????????????? | | ???????????? ## ###?????????????? | | ?????????????######### ###?????????????? | | ?????????????####### ##??????????????? | | ?????????????????????? #??????????????? | | ?????????????????????? ##??????????????? | | ?????????????????????? ##??????????????? | | ?????????????????????? ##??????????????? | | ??????????????????????#+###??????????????? | | ?????????????????????? ??????????????? | | ?????????????????????????????????????????? | | ?????????????????????????????????????????? | | ?????????????????????????????????????????? | | ?????????????????????????????????????????? | | ?????????????????????????????????????????? | | ?????????????????????????????????????????? | | ?????????????????????????????????????????? | | ?????????????????????????????????????????? | | ?????????????????????????????????????????? | | ?????????????????????????????????????????? | | ?????????????????????????????????????????? | +----------------------------------------------------+ Best States ------------- Heat Dissipation 25 Energy Generation 10 Energy Capacity 250 Matter Stores 300 Matter Capacity 300 Sight Range 16 Terrain Scan Density 10 Armor Coverage 150 Evasion (%) 55 Item Schematics ----------------- None Robot Schematics ------------------ None Fabricated ------------ Nothing Alien Tech Used ----------------- None Achievements -------------- None Challenges ------------ None Game ------ Seed ConcussiveAluminumMallet Manual? 0 Play Time 00:09:46 Cumulative 58.4 hours Start 2025.04.24 @ 20:55:23 End 2025.04.24 @ 21:04:01 Sessions 1 Manual Loads 0 Difficulty Rogue Special Mode None Game No. 120 Rogue 72 Adventurer 48 Explorer 0 Win Type - Total 0 Types 0/0/0/0/0/0/0/0/0 Lore% 19 Gallery% 41 Achievement% 36 Wizard Run 0 Options --------- Layout 1 ASCII 0 Keyboard 0 Movement Mouse Keybinds 0 Fullscreen 1 Font 32/SmallcapsGlow Map View 50x35 Zoom Use 0% Tactical HUD 1 Map Filters NONE Filters NONE Steam 1 RUN: 8706befa-f1e4-499e-bc48-ad04340f141c